[Event "44th Chess Olympiad Women 2022"]
[Site "Chennai"]
[Date "2022.07.30"]
[Round "2.43"]
[White "Mentile, Lishen"]
[Black "Khalil, Manar"]
[Result "0-1"]
[ECO "B43"]
[WhiteElo "1486"]
[BlackElo "1831"]
[Annotator "NA RC COMBH"]
[PlyCount "128"]
[EventDate "2022.07.29"]
[EventType "team-tourn"]
[EventCountry "IND"]
[SourceTitle "playchess.com"]
[Source "ChessBase"]
[SourceQuality "1"]
[WhiteTeam "Namibia"]
[BlackTeam "Syria"]
[WhiteTeamCountry "NAM"]
[BlackTeamCountry "SYR"]
[TimeControl "40/5400+30:1800+30"]

1. e4 {[%emt 0:00:23]} c5 {[%emt 0:00:10]} 2. Nf3 {[%emt 0:00:23]} e6 {[%emt 0:00:27]} 3. d4 {[%emt 0:01:28]} cxd4 {[%emt 0:00:15]} 4. Nxd4 {[%emt 0:01:16]} a6 {[%emt 0:00:27]} 5. Nc3 {[%emt 0:01:53]} Qc7 {[%emt 0:00:16]} 6. Be2 {[%emt 0:04:45]} Nf6 {[%emt 0:01:54]} 7. a3 {[%emt 0:03:01]} Be7 {[%emt 0:02:24]} 8. O-O {[%emt 0:04:41]} d6 {[%emt 0:02:41]} 9. Bg5 {[%emt 0:04:53]} Nbd7 {[%emt 0:01:49]} 10. Qd2 {[%emt 0:06:15]} b5 {[%emt 0:02:12]} 11. Rad1 {[%emt 0:06:40]} O-O {[%emt 0:02:25]} 12. f4 {[%emt 0:02:38]} Bb7 {[%emt 0:03:16]} 13. Bf3 {[%emt 0:00:14]} Rfd8 {[%emt 0:05:11]} 14. Nde2 {[%emt 0:10:59]} Nb6 {[%emt 0:03:42]} 15. Ng3 {[%emt 0:06:38]} Nc4 {[%emt 0:02:01]} 16. Qc1 {[%emt 0:01:18]} Qc5+ {[%emt 0:10:37]} 17. Rf2 {[%emt 0:02:44]} Ne3 {[%emt 0:01:38]} 18. Re1 {[%emt 0:00:34]} Neg4 {[%emt 0:03:04]} 19. Bxg4 {[%emt 0:07:30]} Nxg4 {[%emt 0:00:25]} 20. Bxe7 {[%emt 0:02:21]} Qxf2+ {[%emt 0:09:45]} 21. Kh1 {[%emt 0:00:07]} Rd7 {[%emt 0:02:35]} 22. Bh4 {[%emt 0:06:23]} Qc5 {[%emt 0:04:30]} 23. Nd1 {[%emt 0:13:29]} Rc8 {[%emt 0:01:49]} 24. c3 {[%emt 0:00:26]} d5 {[%emt 0:01:37]} 25. h3 {[%emt 0:03:10]} Nf2+ {[%emt 0:01:03]} 26. Nxf2 {[%emt 0:00:39]} Qxf2 {[%emt 0:00:10]} 27. Nf5 {[%emt 0:00:40]} Qc5 {[%emt 0:00:36]} 28. Nd4 {[%emt 0:06:33]} dxe4 {[%emt 0:00:48]} 29. Bf2 {[%emt 0:00:36]} Qh5 {[%emt 0:00:54]} 30. Qe3 {[%emt 0:00:08]} a5 {[%emt 0:04:04]} 31. Kh2 {[%emt 0:00:53]} h6 {[%emt 0:00:20]} 32. Qg3 {[%emt 0:00:34]} Rcd8 {[%emt 0:03:31]} 33. Be3 {[%emt 0:00:27]} b4 {[%emt 0:02:20]} 34. axb4 {[%emt 0:00:45]} axb4 {[%emt 0:00:05]} 35. Nb3 {[%emt 0:00:12]} Rd5 {[%emt 0:05:46]} 36. Bd4 {[%emt 0:00:40]} Qg6 {[%emt 0:02:42]} 37. Qxg6 {[%emt 0:00:18]} fxg6 {[%emt 0:00:01]} 38. Rxe4 {[%emt 0:00:07]} bxc3 {[%emt 0:02:13]} 39. Bxc3 {[%emt 0:00:52]} Rb5 {[%emt 0:02:20]} 40. Rb4 {[%emt 0:00:27]} Rxb4 {[%emt 0:03:11]} 41. Bxb4 {[%emt 0:30:06]} Bxg2 {[%emt 0:32:40]} 42. Kxg2 {[%emt 0:00:55]} Rb8 {[%emt 0:00:07]} 43. Bc3 {[%emt 0:00:09]} Rxb3 {[%emt 0:00:11]} 44. h4 {[%emt 0:00:21]} Kf7 {[%emt 0:00:58]} 45. Kf3 {[%emt 0:00:26]} g5 {[%emt 0:01:54]} 46. hxg5 {[%emt 0:01:28]} hxg5 {[%emt 0:00:14]} 47. fxg5 {[%emt 0:01:15]} Kg6 {[%emt 0:00:43]} 48. Kf4 {[%emt 0:00:13]} Rb5 {[%emt 0:00:49]} 49. Be5 {[%emt 0:00:28]} Rb4+ {[%emt 0:01:12]} 50. Kf3 {[%emt 0:00:27]} Kxg5 {[%emt 0:00:20]} 51. Bxg7 {[%emt 0:00:11]} Kf5 {[%emt 0:00:06]} 52. Bc3 {[%emt 0:00:15]} Rb7 {[%emt 0:00:32]} 53. Ke3 {[%emt 0:00:22]} e5 {[%emt 0:00:15]} 54. Kf3 {[%emt 0:00:15]} e4+ {[%emt 0:00:24]} 55. Ke3 {[%emt 0:00:01]} Rb3 {[%emt 0:00:53]} 56. Ke2 {[%emt 0:00:30]} Kf4 {[%emt 0:00:51]} 57. Kf2 {[%emt 0:00:01]} e3+ {[%emt 0:00:26]} 58. Ke2 {[%emt 0:00:12]} Ke4 {[%emt 0:00:08]} 59. Bg7 {[%emt 0:00:31]} Rb6 {[%emt 0:00:38]} 60. Bh8 {[%emt 0:01:23]} Rh6 {[%emt 0:00:26]} 61. Bc3 {[%emt 0:00:06]} Rh2+ {[%emt 0:00:25]} 62. Kf1 {[%emt 0:02:38]} Kf3 {[%emt 0:00:41]} 63. Kg1 {[%emt 0:00:23]} Rc2 {[%emt 0:00:26]} 64. Kh1 {[%emt 0:00:54]} e2 {[%emt 0:00:36]} 0-1

[Event "44th Chess Olympiad Women 2022"]
[Site "Chennai"]
[Date "2022.07.30"]
[Round "2.43"]
[White "Van Wyk, Keisha C"]
[Black "Ahmad Murad, Fatema Alzahraa."]
[Result "0-1"]
[ECO "C17"]
[WhiteElo "1237"]
[BlackElo "1791"]
[Annotator "NA COMBH"]
[PlyCount "110"]
[EventDate "2022.07.29"]
[EventType "team-tourn"]
[EventCountry "IND"]
[SourceTitle "playchess.com"]
[Source "ChessBase"]
[SourceQuality "1"]
[WhiteTeam "Namibia"]
[BlackTeam "Syria"]
[WhiteTeamCountry "NAM"]
[BlackTeamCountry "SYR"]
[TimeControl "40/5400+30:1800+30"]

1. e4 {[%emt 0:00:10]} e6 {[%emt 0:00:05]} 2. d4 {[%emt 0:00:20]} d5 {[%emt 0:00:11]} 3. Nc3 {[%emt 0:00:28]} Bb4 {[%emt 0:00:36]} 4. e5 {[%emt 0:00:59]} c5 {[%emt 0:00:33]} 5. Nge2 {[%emt 0:04:30]} Nc6 {[%emt 0:00:24]} 6. Be3 {[%emt 0:01:01]} Nge7 {[%emt 0:04:49]} 7. Qd2 {[%emt 0:02:28]} Nf5 {[%emt 0:00:25]} 8. O-O-O {[%emt 0:07:15]} Qa5 {[%emt 0:04:23]} 9. dxc5 {[%emt 0:03:28]} Bxc3 {[%emt 0:06:11]} 10. Qxc3 {[%emt 0:26:33]} Qxc3 {[%emt 0:03:53]} 11. bxc3 {[%emt 0:01:13]} Nxe3 {[%emt 0:00:45]} 12. fxe3 {[%emt 0:00:25]} Nxe5 {[%emt 0:00:10]} 13. Nd4 {[%emt 0:04:10]} Bd7 {[%emt 0:01:52]} 14. Be2 {[%emt 0:03:10]} Rc8 {[%emt 0:01:07]} 15. Kb2 {[%emt 0:04:34]} Rxc5 {[%emt 0:00:44]} 16. Nb3 {[%emt 0:01:59]} Rc7 {[%emt 0:00:27]} 17. Rd4 {[%emt 0:01:28]} Ke7 {[%emt 0:01:09]} 18. Nd2 {[%emt 0:05:16]} Rhc8 {[%emt 0:00:52]} 19. Nb1 {[%emt 0:01:14]} Rc5 {[%emt 0:01:34]} 20. Rhd1 {[%emt 0:01:37]} Bb5 {[%emt 0:02:21]} 21. Bf3 {[%emt 0:05:32]} Kf8 {[%emt 0:09:05]} 22. R1d2 {[%emt 0:02:52]} Nc4+ {[%emt 0:00:22]} 23. Rxc4 {[%emt 0:05:04]} Bxc4 {[%emt 0:00:20]} 24. Rf2 {[%emt 0:02:03]} R8c6 {[%emt 0:00:39]} 25. Nd2 {[%emt 0:01:40]} Ba6 {[%emt 0:08:23]} 26. c4 {[%emt 0:04:05]} Bxc4 {[%emt 0:01:16]} 27. Nxc4 {[%emt 0:00:27]} Rxc4 {[%emt 0:00:11]} 28. Rd2 {[%emt 0:01:13]} Rb6+ {[%emt 0:00:22]} 29. Ka3 {[%emt 0:01:27]} Rc3+ {[%emt 0:00:31]} 30. Ka4 {[%emt 0:00:42]} Rb2 {[%emt 0:00:39]} 31. Be2 {[%emt 0:02:07]} Rxa2+ {[%emt 0:01:07]} 32. Kb4 {[%emt 0:00:18]} Rxe3 {[%emt 0:01:33]} 33. Bd3 {[%emt 0:02:15]} Rxd3 {[%emt 0:00:53]} 34. Rxd3 {[%emt 0:01:07]} Rxc2 {[%emt 0:00:07]} 35. Rg3 {[%emt 0:00:16]} e5 {[%emt 0:00:18]} 36. Rg5 {[%emt 0:00:52]} f6 {[%emt 0:00:16]} 37. Rg3 {[%emt 0:00:25]} d4 {[%emt 0:00:22]} 38. Kb3 {[%emt 0:00:33]} Rc3+ {[%emt 0:00:09]} 39. Rxc3 {[%emt 0:00:34]} dxc3 {[%emt 0:00:04]} 40. Kxc3 {[%emt 0:00:25]} e4 {[%emt 0:00:04]} 41. Kd4 {[%emt 0:30:06]} f5 {[%emt 0:30:13]} 42. Kc4 {[%emt 0:00:31]} e3 {[%emt 0:00:14]} 43. Kd3 {[%emt 0:00:38]} f4 {[%emt 0:00:10]} 44. Kc3 {[%emt 0:00:42]} a5 {[%emt 0:00:11]} 45. Kd3 {[%emt 0:01:12]} a4 {[%emt 0:00:09]} 46. h3 {[%emt 0:00:20]} a3 {[%emt 0:00:07]} 47. Kc2 {[%emt 0:00:07]} a2 {[%emt 0:00:06]} 48. Kb2 {[%emt 0:00:10]} e2 {[%emt 0:00:06]} 49. Kxa2 {[%emt 0:00:11]} e1=Q {[%emt 0:00:05]} 50. Kb3 {[%emt 0:00:18]} Ke7 {[%emt 0:00:12]} 51. Kc4 {[%emt 0:00:12]} Kd6 {[%emt 0:00:10]} 52. Kb5 {[%emt 0:00:17]} Qc3 {[%emt 0:00:32]} 53. Kb6 {[%emt 0:00:26]} Qb4+ {[%emt 0:00:20]} 54. Ka7 {[%emt 0:02:12]} Kc7 {[%emt 0:00:03]} 55. g4 {[%emt 0:02:08]} Qa5# {[%emt 0:00:09]} 0-1

[Event "44th Chess Olympiad Women 2022"]
[Site "Chennai"]
[Date "2022.07.30"]
[Round "2.44"]
[White "Jose de Ribbegren, Kenia"]
[Black "Cho, Hung-Ling"]
[Result "1-0"]
[ECO "A40"]
[WhiteElo "1787"]
[BlackElo "1576"]
[Annotator "NA RC COMBH"]
[PlyCount "131"]
[EventDate "2022.07.29"]
[EventType "team-tourn"]
[EventCountry "IND"]
[SourceTitle "playchess.com"]
[Source "ChessBase"]
[SourceQuality "1"]
[WhiteTeam "Monaco"]
[BlackTeam "Taiwan"]
[WhiteTeamCountry "MNC"]
[BlackTeamCountry "TPE"]
[TimeControl "40/5400+30:1800+30"]

1. d4 {[%emt 0:00:04]} e6 {[%emt 0:00:04]} 2. Bf4 {[%emt 0:00:15]} c5 {[%emt 0:00:18]} 3. e3 {[%emt 0:00:59]} Qb6 {[%emt 0:00:35]} 4. Nc3 {[%emt 0:02:15]} Nf6 {[%emt 0:12:58]} 5. Na4 {[%emt 0:30:26]} Qa5+ {[%emt 0:07:43]} 6. c3 {[%emt 0:00:05]} Nd5 {[%emt 0:22:04]} 7. Nxc5 {[%emt 0:03:06]} Bxc5 {[%emt 0:02:35]} 8. dxc5 {[%emt 0:01:22]} Qxc5 {[%emt 0:03:17]} 9. Bg3 {[%emt 0:06:07]} Qb6 {[%emt 0:06:40]} 10. Qc2 {[%emt 0:02:53]} Nc6 {[%emt 0:05:48]} 11. Nf3 {[%emt 0:00:39]} Nf6 {[%emt 0:04:00]} 12. Bd3 {[%emt 0:05:45]} d5 {[%emt 0:02:07]} 13. O-O {[%emt 0:01:12]} h6 {[%emt 0:01:32]} 14. h3 {[%emt 0:04:21]} O-O {[%emt 0:02:06]} 15. Rad1 {[%emt 0:06:22]} a5 {[%emt 0:11:29]} 16. Rfe1 {[%emt 0:02:57]} Ne7 {[%emt 0:03:34]} 17. Nd4 {[%emt 0:02:16]} Re8 {[%emt 0:03:40]} 18. Nb5 {[%emt 0:00:55]} Rf8 {[%emt 0:05:56]} 19. Bd6 {[%emt 0:01:28]} Re8 {[%emt 0:02:30]} 20. Be5 {[%emt 0:02:08]} Rf8 {[%emt 0:00:18]} 21. Qe2 {[%emt 0:01:02]} Nd7 {[%emt 0:01:05]} 22. Bd4 {[%emt 0:07:03]} Qc6 {[%emt 0:00:28]} 23. Qh5 {[%emt 0:00:39]} Nf5 {[%emt 0:00:32]} 24. Rc1 {[%emt 0:02:21]} g6 {[%emt 0:00:35]} 25. Qg4 {[%emt 0:02:34]} e5 {[%emt 0:00:33]} 26. Ba7 {[%emt 0:01:56]} Nc5 {[%emt 0:00:28]} 27. Bxc5 {[%emt 0:02:02]} Qxc5 {[%emt 0:00:02]} 28. Qd1 {[%emt 0:00:25]} Bd7 {[%emt 0:00:52]} 29. Na3 {[%emt 0:00:10]} e4 {[%emt 0:00:33]} 30. Be2 {[%emt 0:00:06]} b5 {[%emt 0:00:42]} 31. Nc2 {[%emt 0:00:14]} Rac8 {[%emt 0:00:20]} 32. Nd4 {[%emt 0:00:13]} Rfd8 {[%emt 0:00:30]} 33. Nb3 {[%emt 0:00:37]} Qb6 {[%emt 0:00:35]} 34. Qxd5 {[%emt 0:00:29]} Be8 {[%emt 0:00:24]} 35. Qxe4 {[%emt 0:00:13]} Kg7 {[%emt 0:00:36]} 36. Bg4 {[%emt 0:02:31]} Bc6 {[%emt 0:00:23]} 37. Qe5+ {[%emt 0:01:18]} f6 {[%emt 0:00:30]} 38. Qf4 {[%emt 0:00:20]} Bd7 {[%emt 0:00:28]} 39. Bxf5 {[%emt 0:01:21]} Bxf5 {[%emt 0:00:04]} 40. Nd4 {[%emt 0:00:04]} Bd7 {[%emt 0:00:59]} 41. Red1 {[%emt 0:31:42]} Be8 {[%emt 0:30:32]} 42. Qe4 {[%emt 0:00:32]} Bf7 {[%emt 0:00:00]} 43. a3 {[%emt 0:00:00]} Re8 {[%emt 0:00:00]} 44. Qg4 {[%emt 0:00:00]} Rc5 {[%emt 0:00:00]} 45. h4 {[%emt 0:00:00]} Qb7 {[%emt 0:00:00]} 46. Ne2 {[%emt 0:00:00]} Be6 {[%emt 0:00:00]} 47. Qg3 {[%emt 0:00:00]} Bf5 {[%emt 0:02:15]} 48. Rd4 {[%emt 0:00:00]} Rce5 {[%emt 0:00:59]} 49. Rcd1 {[%emt 0:00:00]} Re4 {[%emt 0:00:47]} 50. Rxe4 {[%emt 0:00:00]} Rxe4 {[%emt 0:00:31]} 51. Rd4 {[%emt 0:00:00]} Re7 {[%emt 0:00:27]} 52. Qd6 {[%emt 0:00:00]} h5 {[%emt 0:00:33]} 53. Nf4 {[%emt 0:00:00]} Rd7 {[%emt 0:00:24]} 54. Qc5 {[%emt 0:00:00]} Rc7 {[%emt 0:00:35]} 55. Qd6 {[%emt 0:00:00]} Rd7 {[%emt 0:00:07]} 56. Ne6+ {[%emt 0:00:00]} Bxe6 {[%emt 0:00:51]} 57. Qxe6 {[%emt 0:00:00]} Re7 {[%emt 0:00:28]} 58. Qd6 {[%emt 0:00:00]} a4 {[%emt 0:00:36]} 59. Rf4 {[%emt 0:00:00]} Rf7 {[%emt 0:00:26]} 60. e4 {[%emt 0:00:00]} Qc8 {[%emt 0:00:33]} 61. e5 {[%emt 0:00:00]} f5 {[%emt 0:00:30]} 62. Rd4 {[%emt 0:00:00]} Qe8 {[%emt 0:00:25]} 63. Rd5 {[%emt 0:02:58]} Kh6 {[%emt 0:00:36]} 64. Qd8 {[%emt 0:01:53]} Qe6 {[%emt 0:00:29]} 65. Qg5+ {[%emt 0:02:15]} Kh7 {[%emt 0:00:04]} 66. Rd6 {[%emt 0:00:50]} 1-0

[Event "44th Chess Olympiad Women 2022"]
[Site "Chennai"]
[Date "2022.07.30"]
[Round "2.44"]
[White "Berezovsky, Fiorina"]
[Black "Shih, Ching-An"]
[Result "1-0"]
[ECO "D45"]
[WhiteElo "1544"]
[BlackElo "1582"]
[Annotator "NA RC COMBH"]
[PlyCount "79"]
[EventDate "2022.07.29"]
[EventType "team-tourn"]
[EventCountry "IND"]
[SourceTitle "playchess.com"]
[Source "ChessBase"]
[SourceQuality "1"]
[WhiteTeam "Monaco"]
[BlackTeam "Taiwan"]
[WhiteTeamCountry "MNC"]
[BlackTeamCountry "TPE"]
[TimeControl "40/5400+30:1800+30"]

1. d4 {[%emt 0:00:08]} d5 {[%emt 0:00:16]} 2. c4 {[%emt 0:00:28]} c6 {[%emt 0:00:22]} 3. Nc3 {[%emt 0:00:38]} Nf6 {[%emt 0:00:12]} 4. Nf3 {[%emt 0:03:07]} e6 {[%emt 0:00:15]} 5. e3 {[%emt 0:01:39]} Nbd7 {[%emt 0:01:42]} 6. Qc2 {[%emt 0:01:42]} Be7 {[%emt 0:01:06]} 7. Bd3 {[%emt 0:01:54]} dxc4 {[%emt 0:00:33]} 8. Bxc4 {[%emt 0:00:12]} b5 {[%emt 0:00:05]} 9. Be2 {[%emt 0:03:29]} Bb7 {[%emt 0:00:44]} 10. O-O {[%emt 0:01:28]} O-O {[%emt 0:00:35]} 11. Rd1 {[%emt 0:04:06]} Qb6 {[%emt 0:06:33]} 12. e4 {[%emt 0:04:49]} a6 {[%emt 0:03:45]} 13. Bg5 {[%emt 0:03:15]} Rfe8 {[%emt 0:00:16]} 14. a4 {[%emt 0:03:23]} Rac8 {[%emt 0:04:57]} 15. e5 {[%emt 0:03:13]} Nd5 {[%emt 0:00:25]} 16. a5 {[%emt 0:02:03]} Qd8 {[%emt 0:00:46]} 17. Ne4 {[%emt 0:02:07]} f6 {[%emt 0:05:00]} 18. exf6 {[%emt 0:01:56]} N7xf6 {[%emt 0:00:12]} 19. Bxf6 {[%emt 0:05:57]} Nxf6 {[%emt 0:00:51]} 20. Nfg5 {[%emt 0:02:12]} Nxe4 {[%emt 0:03:59]} 21. Nxe4 {[%emt 0:02:03]} Qd5 {[%emt 0:17:40]} 22. Nc5 {[%emt 0:02:20]} Bxc5 {[%emt 0:04:47]} 23. dxc5 {[%emt 0:00:11]} Qg5 {[%emt 0:00:09]} 24. Rd7 {[%emt 0:02:48]} Re7 {[%emt 0:00:05]} 25. Rad1 {[%emt 0:00:46]} Rce8 {[%emt 0:00:22]} 26. Bf3 {[%emt 0:01:24]} Rxd7 {[%emt 0:18:54]} 27. Rxd7 {[%emt 0:00:14]} Re7 {[%emt 0:00:06]} 28. Rd8+ {[%emt 0:01:47]} Kf7 {[%emt 0:00:06]} 29. Qxh7 {[%emt 0:01:31]} Rc7 {[%emt 0:10:09]} 30. Qg8+ {[%emt 0:01:42]} Kf6 {[%emt 0:00:36]} 31. Rd6 {[%emt 0:05:27]} Qc1+ {[%emt 0:05:01]} 32. Bd1 {[%emt 0:00:47]} Qc4 {[%emt 0:00:10]} 33. g3 {[%emt 0:01:25]} Rc8 {[%emt 0:02:02]} 34. Rd8 {[%emt 0:01:21]} Rxd8 {[%emt 0:03:58]} 35. Qxd8+ {[%emt 0:00:03]} Kg6 {[%emt 0:00:51]} 36. Qe8+ {[%emt 0:01:09]} Kf6 {[%emt 0:00:21]} 37. Bh5 {[%emt 0:01:40]} Qxc5 {[%emt 0:06:09]} 38. Qf7+ {[%emt 0:01:14]} Ke5 {[%emt 0:00:06]} 39. Qf4+ {[%emt 0:00:45]} Kd5 {[%emt 0:00:16]} 40. Bf3# {[%emt 0:00:08]} 1-0

[Event "44th Chess Olympiad Women 2022"]
[Site "Chennai"]
[Date "2022.07.30"]
[Round "2.44"]
[White "Tsai, Sophie Yi-Hsuan"]
[Black "Dubois, Martine"]
[Result "1/2-1/2"]
[ECO "C40"]
[WhiteElo "1131"]
[BlackElo "1782"]
[Annotator "NA RC COMBH"]
[PlyCount "100"]
[EventDate "2022.07.29"]
[EventType "team-tourn"]
[EventCountry "IND"]
[SourceTitle "playchess.com"]
[Source "ChessBase"]
[SourceQuality "1"]
[WhiteTeam "Taiwan"]
[BlackTeam "Monaco"]
[WhiteTeamCountry "TPE"]
[BlackTeamCountry "MNC"]
[TimeControl "40/5400+30:1800+30"]

1. e4 {[%emt 0:00:03]} e5 {[%emt 0:00:09]} 2. Nf3 {[%emt 0:00:07]} d5 {[%emt 0:00:06]} 3. exd5 {[%emt 0:00:03]} e4 {[%emt 0:00:06]} 4. Qe2 {[%emt 0:00:04]} Nf6 {[%emt 0:00:06]} 5. Nc3 {[%emt 0:00:15]} Be7 {[%emt 0:00:13]} 6. Nxe4 {[%emt 0:00:44]} O-O {[%emt 0:02:20]} 7. Nxf6+ {[%emt 0:00:59]} Bxf6 {[%emt 0:00:03]} 8. d4 {[%emt 0:00:22]} Qxd5 {[%emt 0:00:34]} 9. Be3 {[%emt 0:01:15]} c5 {[%emt 0:09:59]} 10. Qc4 {[%emt 0:04:08]} Be6 {[%emt 0:05:01]} 11. Qxd5 {[%emt 0:04:02]} Bxd5 {[%emt 0:00:04]} 12. O-O-O {[%emt 0:00:23]} c4 {[%emt 0:03:43]} 13. h4 {[%emt 0:19:06]} b5 {[%emt 0:03:18]} 14. Be2 {[%emt 0:01:49]} a5 {[%emt 0:03:51]} 15. g4 {[%emt 0:00:50]} Be7 {[%emt 0:02:41]} 16. Rhg1 {[%emt 0:00:58]} b4 {[%emt 0:02:40]} 17. Ne5 {[%emt 0:03:36]} Rc8 {[%emt 0:04:17]} 18. Bf3 {[%emt 0:01:41]} Bxf3 {[%emt 0:00:23]} 19. Nxf3 {[%emt 0:00:02]} a4 {[%emt 0:02:32]} 20. Kd2 {[%emt 0:30:56]} Nd7 {[%emt 0:04:28]} 21. Ke2 {[%emt 0:02:05]} Bd6 {[%emt 0:02:12]} 22. h5 {[%emt 0:01:14]} Nf6 {[%emt 0:04:21]} 23. d5 {[%emt 0:03:40]} a3 {[%emt 0:06:03]} 24. b3 {[%emt 0:01:53]} cxb3 {[%emt 0:00:09]} 25. cxb3 {[%emt 0:00:11]} Rc2+ {[%emt 0:01:01]} 26. Rd2 {[%emt 0:00:59]} Rxd2+ {[%emt 0:02:43]} 27. Bxd2 {[%emt 0:06:40]} Nxd5 {[%emt 0:01:54]} 28. Rd1 {[%emt 0:03:40]} Nf6 {[%emt 0:00:44]} 29. h6 {[%emt 0:05:54]} Re8+ {[%emt 0:08:20]} 30. Kf1 {[%emt 0:04:58]} Nxg4 {[%emt 0:13:04]} 31. hxg7 {[%emt 0:01:24]} Bc5 {[%emt 0:05:09]} 32. Be1 {[%emt 0:01:19]} h5 {[%emt 0:03:10]} 33. Rd5 {[%emt 0:00:41]} Be7 {[%emt 0:03:04]} 34. Rxh5 {[%emt 0:00:21]} Kxg7 {[%emt 0:00:12]} 35. Rb5 {[%emt 0:00:27]} Rc8 {[%emt 0:01:06]} 36. Bxb4 {[%emt 0:00:42]} Bf6 {[%emt 0:02:22]} 37. Bxa3 {[%emt 0:00:47]} Rc2 {[%emt 0:00:10]} 38. Rb4 {[%emt 0:00:37]} Nxf2 {[%emt 0:01:23]} 39. Rc4 {[%emt 0:00:25]} Rxa2 {[%emt 0:00:21]} 40. Bc5 {[%emt 0:00:18]} Nd3 {[%emt 0:01:45]} 41. Bd4 {[%emt 0:30:51]} Bxd4 {[%emt 0:31:16]} 42. Nxd4 {[%emt 0:00:29]} Rf2+ {[%emt 0:00:00]} 43. Kg1 {[%emt 0:00:00]} Rb2 {[%emt 0:00:00]} 44. Kf1 {[%emt 0:00:00]} Kf6 {[%emt 0:00:00]} 45. Rc3 {[%emt 0:00:00]} Nb4 {[%emt 0:00:00]} 46. Rc5 {[%emt 0:00:00]} Nd3 {[%emt 0:00:00]} 47. Rc3 {[%emt 0:00:00]} Ne5 {[%emt 0:00:00]} 48. Rc2 {[%emt 0:00:00]} Rb1+ {[%emt 0:00:00]} 49. Ke2 {[%emt 0:00:00]} Kg5 {[%emt 0:00:00]} 50. Kd2 {[%emt 0:00:00]} Kf4 {[%emt 0:00:00]} 1/2-1/2

[Event "44th Chess Olympiad Women 2022"]
[Site "Chennai"]
[Date "2022.07.30"]
[Round "2.45"]
[White "Rouda Essa, Alserkal"]
[Black "Bouzana, Christina"]
[Result "1-0"]
[ECO "B18"]
[WhiteElo "1874"]
[BlackElo "1079"]
[Annotator "NA RC COMBH"]
[PlyCount "71"]
[EventDate "2022.07.29"]
[EventType "team-tourn"]
[EventCountry "IND"]
[SourceTitle "playchess.com"]
[Source "ChessBase"]
[SourceQuality "1"]
[WhiteTeam "United Arab Emirates"]
[BlackTeam "Cyprus"]
[WhiteTeamCountry "UAE"]
[BlackTeamCountry "CYP"]
[TimeControl "40/5400+30:1800+30"]

1. e4 {[%emt 0:00:30]} c6 {[%emt 0:00:30]} 2. d4 {[%emt 0:00:30]} d5 {[%emt 0:00:30]} 3. Nd2 {[%emt 0:00:30]} dxe4 {[%emt 0:00:30]} 4. Nxe4 {[%emt 0:00:30]} Bf5 {[%emt 0:00:30]} 5. Ng3 {[%emt 0:06:26]} Bg6 6. h4 {[%emt 0:00:00]} h6 {[%emt 0:00:00]} 7. Nh3 {[%emt 0:00:00]} e6 {[%emt 0:02:41]} 8. Nf4 {[%emt 0:00:00]} Bh7 {[%emt 0:01:53]} 9. c3 {[%emt 0:00:00]} Nf6 {[%emt 0:02:28]} 10. Ngh5 {[%emt 0:00:00]} Nbd7 {[%emt 0:01:20]} 11. Bd3 {[%emt 0:01:30]} Bxd3 {[%emt 0:00:10]} 12. Qxd3 {[%emt 0:00:08]} e5 {[%emt 0:05:53]} 13. dxe5 {[%emt 0:06:50]} Nxe5 {[%emt 0:00:55]} 14. Qe2 {[%emt 0:01:13]} Qe7 {[%emt 0:08:25]} 15. Nxf6+ {[%emt 0:01:48]} Qxf6 {[%emt 0:01:34]} 16. Nd3 {[%emt 0:00:32]} Qe6 {[%emt 0:07:13]} 17. Qxe5 {[%emt 0:00:11]} Qxe5+ {[%emt 0:01:14]} 18. Nxe5 {[%emt 0:00:02]} Bd6 {[%emt 0:02:10]} 19. Nf3 {[%emt 0:00:29]} O-O-O {[%emt 0:02:05]} 20. Be3 {[%emt 0:00:12]} Rhe8 {[%emt 0:01:20]} 21. O-O-O {[%emt 0:00:20]} h5 {[%emt 0:07:55]} 22. Rhe1 {[%emt 0:00:42]} a6 {[%emt 0:04:11]} 23. Nd4 {[%emt 0:02:33]} g6 {[%emt 0:01:45]} 24. Bg5 {[%emt 0:00:19]} Rxe1 {[%emt 0:01:06]} 25. Rxe1 {[%emt 0:00:06]} Rg8 {[%emt 0:01:39]} 26. Nf3 {[%emt 0:00:30]} Bc5 {[%emt 0:09:59]} 27. Re2 {[%emt 0:00:32]} Rf8 {[%emt 0:01:49]} 28. Bf6 {[%emt 0:00:23]} Bd6 {[%emt 0:02:35]} 29. Ng5 {[%emt 0:01:39]} Kd7 {[%emt 0:07:12]} 30. Ne4 {[%emt 0:02:40]} Re8 {[%emt 0:03:19]} 31. f3 {[%emt 0:00:42]} Kc7 {[%emt 0:05:28]} 32. Kd1 {[%emt 0:01:39]} Re6 {[%emt 0:04:15]} 33. Rd2 {[%emt 0:01:43]} Bf4 {[%emt 0:03:46]} 34. Rd3 {[%emt 0:00:08]} Bd6 {[%emt 0:03:46]} 35. Nxd6 {[%emt 0:00:09]} Rxd6 {[%emt 0:00:13]} 36. Be5 {[%emt 0:00:06]} 1-0